fUST/lending_fUST_20260509
["ID","MTS","AMOUNT","RATE_DAILY","PERIOD"]
[421878470,1778267432000,-2056.44,0.00012672,2]
[421878472,1778267432000,-500.0,0.00012672,2]
[421878481,1778267432000,-754.37806874,0.000129,2]
[421878474,1778267432000,-156.51,0.00012747,2]
[421878475,1778267432000,-156.78,0.00012837,2]
[421878483,1778267432000,-2056.44,0.00012946,2]
[421878477,1778267432000,-820.26,0.00012854,2]
[421878484,1778267432000,-500.0,0.00012946,2]
[421878488,1778267432000,-161.58879827,0.00013033,2]
[421878486,1778267432000,-157.23,0.0001302,2]
[421878434,1778267432000,-300.0,0.00010199,2]
[421878464,1778267432000,-5379.67682267,0.00012399,2]
[421878441,1778267432000,-159.496814,0.00010386,2]
[421878389,1778267432000,-159.496814,8.655e-05,2]
[421878438,1778267432000,-351.40364405,0.00010352,2]
[421878489,1778267432000,-160.0,0.00013033,2]
[421878388,1778267432000,-297.79969835,8.352e-05,2]
[421878391,1778267432000,-159.496814,9.001e-05,2]
[421878392,1778267432000,-159.496814,9.347e-05,2]
[421878397,1778267432000,-4800.74550838,9.425e-05,2]
[421878402,1778267432000,-1069.27646187,9.755e-05,2]
[421878399,1778267432000,-159.496814,9.694e-05,2]
[421878400,1778267432000,-300.0,9.754e-05,2]
[421878394,1778267432000,-2058.28999451,9.425e-05,2]
[421878407,1778267432000,-420.80213268,0.0001,2]
[421878409,1778267432000,-159.496814,0.0001004,2]
[421878404,1778267432000,-8930.72353813,9.755e-05,2]
[421878405,1778267432000,-1601.22177545,0.0001,2]
[421878418,1778267432000,-300.0,0.00010199,2]
[421878416,1778267432000,-300.0,0.00010199,2]
[421878419,1778267432000,-300.0,0.00010199,2]
[421878422,1778267432000,-300.0,0.00010199,2]
[421878421,1778267432000,-300.0,0.00010199,2]
[421878411,1778267432000,-300.0,0.00010199,2]
[421878412,1778267432000,-300.0,0.00010199,2]
[421878425,1778267432000,-300.0,0.00010199,2]
[421878414,1778267432000,-300.0,0.00010199,2]
[421878427,1778267432000,-300.0,0.00010199,2]
[421878429,1778267432000,-300.0,0.00010199,2]
[421878431,1778267432000,-300.0,0.00010199,2]
[421878432,1778267432000,-300.0,0.00010199,2]
[421878436,1778267432000,-300.0,0.00010199,2]
[421878445,1778267432000,-420.0,0.0001073,2]
[421878491,1778267432000,-160.0,0.00013033,2]
[421878563,1778267432000,-500.0,0.00013481,2]
[421878500,1778267432000,-500.0,0.0001322,2]
[421878552,1778267432000,-571.38407614,0.00013481,2]
[421878555,1778267432000,-186.12098926,0.00013481,2]
[421878553,1778267432000,-500.0,0.00013481,2]
[421878557,1778267432000,-500.0,0.00013481,2]
[421878559,1778267432000,-500.0,0.00013481,2]
[421878571,1778267432000,-500.0,0.00013481,2]
[421878568,1778267432000,-500.0,0.00013481,2]
[421878572,1778267432000,-500.0,0.00013481,2]
[421878574,1778267432000,-500.0,0.00013481,2]
[421878565,1778267432000,-500.0,0.00013481,2]
[421878596,1778267432000,-1720.42089516,0.00013482,2]
[421878577,1778267432000,-500.0,0.00013481,2]
[421878543,1778267432000,-500.0,0.00013481,2]
[421878567,1778267432000,-500.0,0.00013481,2]
[421878579,1778267432000,-500.0,0.00013481,2]
[421878590,1778267432000,-1720.42089516,0.00013482,2]
[421878594,1778267432000,-1720.42089516,0.00013482,2]
[421878592,1778267432000,-1720.42089516,0.00013482,2]
[421878580,1778267432000,-500.0,0.00013481,2]
[421878578,1778267432000,-500.0,0.00013481,2]
[421878581,1778267432000,-500.0,0.00013481,2]
[421878586,1778267432000,-560.71078373,0.00013482,2]
[421878588,1778267432000,-1720.42089516,0.00013482,2]
[421878582,1778267432000,-500.0,0.00013481,2]
[421878584,1778267432000,-500.0,0.00013481,2]
[421878504,1778267432000,-158.87,0.00013346,2]
[421878576,1778267432000,-500.0,0.00013481,2]
[421878539,1778267432000,-500.0,0.00013481,2]
[421878562,1778267432000,-500.0,0.00013481,2]
[421878538,1778267432000,-500.0,0.00013481,2]
[421878505,1778267432000,-268.07023234,0.00013382,2]
[421878496,1778267432000,-820.26,0.00013128,2]
[421878495,1778267432000,-4801.14,0.00013043,15]
[421878502,1778267432000,-157.95,0.0001327,2]
[421878498,1778267432000,-2056.44,0.0001322,2]
[421878493,1778267432000,-160.0,0.00013033,2]
[421878541,1778267432000,-500.0,0.00013481,2]
[421878507,1778267432000,-820.26,0.00013402,2]
[421878511,1778267432000,-48911.0,0.00013481,2]
[421878514,1778267432000,-500.0,0.00013481,2]
[421878512,1778267432000,-500.0,0.00013481,2]
[421878516,1778267432000,-500.0,0.00013481,2]
[421878519,1778267432000,-500.0,0.00013481,2]
[421878518,1778267432000,-500.0,0.00013481,2]
[421878509,1778267432000,-268.07023231,0.00013436,2]
[421878523,1778267432000,-647.48195958,0.00013481,2]
[421878546,1778267432000,-500.0,0.00013481,2]
[421878521,1778267432000,-500.0,0.00013481,2]
[421878550,1778267432000,-500.0,0.00013481,2]
[421878548,1778267432000,-500.0,0.00013481,2]
[421878536,1778267432000,-500.0,0.00013481,2]
[421878534,1778267432000,-163.7375505,0.00013481,2]
[421878545,1778267432000,-500.0,0.00013481,2]
[421878527,1778267432000,-510.35541898,0.00013481,2]
[421878525,1778267432000,-500.0,0.00013481,2]
[421878528,1778267432000,-500.0,0.00013481,2]
[421878530,1778267432000,-354.24100947,0.00013481,2]
[421878532,1778267432000,-500.0,0.00013481,2]
[421878609,1778267433000,-1720.42089516,0.00013482,2]
[421878621,1778267433000,-1806.4419399,0.00013482,2]
[421878620,1778267433000,-1720.42089516,0.00013482,2]
[421878618,1778267433000,-1720.42089516,0.00013482,2]
[421878607,1778267433000,-1720.42089516,0.00013482,2]
[421878623,1778267433000,-1806.4419399,0.00013482,2]
[421878614,1778267433000,-1720.42089516,0.00013482,2]
[421878601,1778267433000,-1720.42089516,0.00013482,2]
[421878616,1778267433000,-1720.42089516,0.00013482,2]
[421878612,1778267433000,-1720.42089516,0.00013482,2]
[421878611,1778267433000,-1720.42089516,0.00013482,2]
[421878603,1778267433000,-1720.42089516,0.00013482,2]
[421878599,1778267433000,-1720.42089516,0.00013482,2]
[421878597,1778267433000,-1720.42089516,0.00013482,2]
[421878636,1778267433000,-1806.4419399,0.00013482,2]
[421878605,1778267433000,-1720.42089516,0.00013482,2]
[421878638,1778267433000,-168770.76980129,0.00013483,2]
[421878655,1778267433000,-4866.84819384,0.00013483,2]
[421878625,1778267433000,-1806.4419399,0.00013482,2]
[421878660,1778267433000,-476.04006851,0.00013481,2]
[421878652,1778267433000,-3992.67818282,0.00013483,2]
[421878648,1778267433000,-500.0,0.00013481,2]
[421878651,1778267433000,-1287.93444474,0.00013483,2]
[421878633,1778267433000,-1806.4419399,0.00013482,2]
[421878649,1778267433000,-560.03801602,0.00013481,2]
[421878645,1778267433000,-913.64676378,0.00013483,2]
[421878657,1778267433000,-51345.11566138,0.00013483,2]
[421878643,1778267433000,-440.41335325,0.00013483,2]
[421878628,1778267433000,-1806.4419399,0.00013482,2]
[421878635,1778267433000,-1806.4419399,0.00013482,2]
[421878641,1778267433000,-29250.26764278,0.00013483,2]
[421878631,1778267433000,-1806.4419399,0.00013482,2]
[421878630,1778267433000,-1806.4419399,0.00013482,2]
[421878627,1778267433000,-1806.4419399,0.00013482,2]
[421878653,1778267433000,-43021.1405261,0.00013483,2]
[421878675,1778267438000,-23.95993149,0.00013481,2]
[421878674,1778267438000,-11704.94231231,0.00013381,2]
[421878677,1778267438000,-500.0,0.00013481,2]
[421878676,1778267438000,-500.0,0.00013481,2]
[421878678,1778267438000,-500.0,0.00013481,2]
[421878681,1778267438000,-500.0,0.00013481,2]
[421878682,1778267438000,-500.0,0.00013481,2]
[421878683,1778267438000,-500.0,0.00013481,2]
[421878679,1778267438000,-500.0,0.00013481,2]
[421878685,1778267438000,-500.0,0.00013481,2]
[421878684,1778267438000,-500.0,0.00013481,2]
[421878686,1778267438000,-500.0,0.00013481,2]
[421878687,1778267438000,-500.0,0.00013481,2]
[421878689,1778267438000,-22531.75,0.00013483,2]
[421878688,1778267438000,-14785.21747794,0.00013483,2]
[421878680,1778267438000,-500.0,0.00013481,2]
[421878700,1778267443000,-644.0,0.00013483,2]
[421878699,1778267443000,-33069.5542643,0.00013483,2]
[421878708,1778267446000,-2374.232,0.00013483,2]
[421878795,1778268632000,-284.27067528,0.00011214,2]
[421878799,1778268632000,-560.13,0.00012184,60]
[421878793,1778268632000,-425.71203433,0.00011046,2]
[421878801,1778268632000,-155.59932472,0.00012228,2]
[421878797,1778268632000,-500.0,0.00011951,2]
[421878870,1778268638000,-144.40067528,0.00012228,2]
[421878879,1778268638000,-160.0,0.00013036,2]
[421878871,1778268638000,-500.0,0.0001258,2]
[421878872,1778268638000,-250.0,0.00012904,60]
[421878874,1778268638000,-102.62760491,0.00013036,2]
[421878873,1778268638000,-1200.0,0.00013035,2]
[421878876,1778268638000,-160.0,0.00013036,2]
[421878875,1778268638000,-58.96119336,0.00013036,2]
[421878877,1778268638000,-160.0,0.00013036,2]
[421878881,1778268638000,-600.0,0.00013068,2]
[421878898,1778268638000,-27368.71418421,0.00013283,2]
[421878884,1778268638000,-600.0,0.00013068,2]
[421878878,1778268638000,-160.0,0.00013036,2]
[421878900,1778268638000,-2232.7,0.00013382,2]
[421878894,1778268638000,-600.0,0.0001323,2]
[421878886,1778268638000,-1680.4,0.00013184,15]
[421878896,1778268638000,-7369.22072318,0.00013283,2]
[421878883,1778268638000,-600.0,0.00013068,2]
[421878880,1778268638000,-300.0,0.00013067,2]
[421878891,1778268638000,-335.43939683,0.00013214,2]
[421878893,1778268638000,-611.53615801,0.0001323,2]
[421878888,1778268638000,-446.6849035,0.00013209,2]
[421878954,1778268639000,-1000.0,0.00013699,2]
[421878949,1778268639000,-1000.0,0.00013699,2]
[421878947,1778268639000,-156.0,0.00013699,2]
[421878948,1778268639000,-180.04681217,0.00013699,2]
[421878946,1778268639000,-500.0,0.00013698,2]
[421878944,1778268639000,-500.0,0.00013698,2]
[421878938,1778268639000,-500.0,0.00013698,2]
[421878943,1778268639000,-500.0,0.00013698,2]
[421878941,1778268639000,-553.2594939,0.00013698,2]
[421878942,1778268639000,-500.0,0.00013698,2]
[421878939,1778268639000,-600.07586703,0.00013698,2]
[421878951,1778268639000,-290.880641,0.00013699,2]
[421878934,1778268639000,-500.0,0.00013698,2]
[421878945,1778268639000,-368.92468967,0.00013698,2]
[421878950,1778268639000,-65000.0,0.00013699,2]
[421878958,1778268639000,-500.0,0.00013929,2]
[421878955,1778268639000,-151.4811645,0.00013822,2]
[421878957,1778268639000,-750.0,0.00013904,15]
[421878956,1778268639000,-456.3497628,0.00013822,2]
[421878931,1778268639000,-500.0,0.00013698,2]
[421878961,1778268639000,-208.77118435,0.000141,2]
[421878965,1778268639000,-1411.0,0.00014209,2]
[421878963,1778268639000,-2232.7,0.00014204,2]
[421878964,1778268639000,-647.0,0.00014209,2]
[421878962,1778268639000,-500.0,0.00014203,2]
[421878959,1778268639000,-2232.7,0.0001393,2]
[421878968,1778268639000,-185.0,0.00014209,2]
[421878966,1778268639000,-2215.0,0.00014209,2]
[421878960,1778268639000,-208.77118435,0.00014,2]
[421878967,1778268639000,-442.0,0.00014209,2]
[421878952,1778268639000,-3269.446415,0.00013699,2]
[421878935,1778268639000,-500.0,0.00013698,2]
[421878930,1778268639000,-1364.32,0.00013698,2]
[421878936,1778268639000,-500.0,0.00013698,2]
[421878902,1778268639000,-1322.98034576,0.00013474,2]
[421878911,1778268639000,-10238.0,0.00013697,2]
[421878907,1778268639000,-160.84213941,0.00013599,2]
[421878909,1778268639000,-500.0,0.00013655,2]
[421878912,1778268639000,-500.0,0.00013698,2]
[421878904,1778268639000,-152.0,0.0001348,7]
[421878910,1778268639000,-2232.7,0.00013656,2]
[421878906,1778268639000,-500.0,0.00013483,2]
[421878908,1778268639000,-600.0,0.00013625,2]
[421878914,1778268639000,-506.67089067,0.00013698,2]
[421878913,1778268639000,-500.0,0.00013698,2]
[421878915,1778268639000,-396.8204529,0.00013698,2]
[421878917,1778268639000,-409.56899881,0.00013698,2]
[421878916,1778268639000,-500.0,0.00013698,2]
[421878933,1778268639000,-500.0,0.00013698,2]
[421878918,1778268639000,-1364.32,0.00013698,2]
[421878920,1778268639000,-1364.32,0.00013698,2]
[421878924,1778268639000,-1364.32,0.00013698,2]
[421878922,1778268639000,-1364.32,0.00013698,2]
[421878921,1778268639000,-1364.32,0.00013698,2]
[421878923,1778268639000,-1364.32,0.00013698,2]
[421878925,1778268639000,-1364.32,0.00013698,2]
[421878926,1778268639000,-1364.32,0.00013698,2]
[421878927,1778268639000,-1364.32,0.00013698,2]
[421878928,1778268639000,-1364.32,0.00013698,2]
[421878929,1778268639000,-1364.32,0.00013698,2]
[421878932,1778268639000,-500.0,0.00013698,2]
[421878970,1778268639000,-208.77118435,0.000143,2]
[421878940,1778268639000,-500.0,0.00013698,2]
[421878937,1778268639000,-500.0,0.00013698,2]
[421878919,1778268639000,-1364.32,0.00013698,2]
[421878969,1778268639000,-160.84213938,0.00014284,2]
[421878953,1778268639000,-500.0,0.00013699,2]
[421878971,1778268639000,-150.494,0.00014331,2]
[421879007,1778268639000,-160.0,0.00015386,7]
[421879011,1778268639000,-160.0,0.00015389,2]
[421879010,1778268639000,-164.452319,0.00015389,7]
[421879013,1778268639000,-1739.390078,0.00015389,2]
[421879012,1778268639000,-949.695039,0.00015389,2]
[421879014,1778268639000,-3920.93,0.00015433,2]
[421879017,1778268639000,-3283.322863,0.00015483,7]
[421879015,1778268639000,-157.71,0.00015465,2]
[421879019,1778268639000,-1364.32,0.00015484,2]
[421879016,1778268639000,-160.0,0.00015483,7]
[421879018,1778268639000,-6406.645726,0.00015483,7]
[421879020,1778268639000,-634.85081501,0.000155,2]
[421879021,1778268639000,-10132.09099554,0.000155,2]
[421879022,1778268639000,-1519.34483836,0.000155,2]
[421879023,1778268639000,-206.8217105,0.00015507,2]
[421879025,1778268639000,-151.0,0.00015507,2]
[421879024,1778268639000,-151.0,0.00015507,2]
[421879039,1778268639000,-5108.833221,0.00015679,2]
[421879037,1778268639000,-160.0,0.00015679,2]
[421879038,1778268639000,-2634.41661,0.00015679,2]
[421879034,1778268639000,-1364.32,0.00015679,2]
[421878972,1778268639000,-1364.32,0.00014362,2]
[421879035,1778268639000,-1364.32,0.00015679,2]
[421879005,1778268639000,-3871.02712092,0.00015318,2]
[421879029,1778268639000,-193.48011672,0.000156,2]
[421879032,1778268639000,-1364.32,0.00015679,2]
[421879031,1778268639000,-160.84213938,0.00015653,2]
[421879030,1778268639000,-10132.09099554,0.000156,2]
[421879028,1778268639000,-1364.32,0.00015599,2]
[421879027,1778268639000,-2232.7,0.00015574,2]
[421879026,1778268639000,-500.0,0.00015573,2]
[421879033,1778268639000,-1364.32,0.00015679,2]
[421879006,1778268639000,-4786.37940003,0.00015342,2]
[421879036,1778268639000,-1364.39501584,0.00015679,2]
[421879003,1778268639000,-430.54466922,0.00015318,2]
[421878985,1778268639000,-1364.32,0.00014999,2]
[421878986,1778268639000,-10132.09099554,0.00015,2]
[421878984,1778268639000,-720.0,0.00014988,2]
[421878983,1778268639000,-160.84213938,0.00014969,2]
[421878982,1778268639000,-332.90809651,0.000149,2]
[421878978,1778268639000,-290.880641,0.00014658,2]
[421878990,1778268639000,-500.0,0.00015025,2]
[421878980,1778268639000,-500.0,0.00014751,2]
[421878979,1778268639000,-791.0,0.000147,2]
[421878976,1778268639000,-2232.7,0.00014478,2]
[421878977,1778268639000,-208.77118435,0.000146,2]
[421878973,1778268639000,-208.77118435,0.000144,2]
[421879008,1778268639000,-2402.983173,0.00015386,7]
[421878974,1778268639000,-5387.87896494,0.0001444,2]
[421878981,1778268639000,-2232.7,0.00014752,2]
[421878987,1778268639000,-1019.78970335,0.00015,2]
[421878975,1778268639000,-500.0,0.00014477,2]
[421878992,1778268639000,-929.363277,0.00015068,2]
[421879009,1778268639000,-4645.966346,0.00015386,7]
[421878991,1778268639000,-2232.7,0.00015026,2]
[421879004,1778268639000,-1722.17867686,0.00015318,2]
[421879000,1778268639000,-2096.0,0.00015304,4]
[421878999,1778268639000,-2232.7,0.000153,2]
[421878997,1778268639000,-500.0,0.00015299,2]
[421878998,1778268639000,-10132.09099554,0.000153,2]
[421879002,1778268639000,-8829.88153239,0.00015318,2]
[421878995,1778268639000,-386.60811838,0.00015214,2]
[421878994,1778268639000,-10132.09099554,0.000152,2]
[421878993,1778268639000,-1364.32,0.00015199,2]
[421878989,1778268639000,-152.82382889,0.00015,2]
[421878988,1778268639000,-1019.78970335,0.00015,2]
[421878996,1778268639000,-1364.32,0.00015299,2]
[421879080,1778268640000,-189.74118105,0.00015913,2]
[421879081,1778268640000,-160.0,0.0001598,3]
[421879082,1778268640000,-120486.17416827,0.00015999,2]
[421879079,1778268640000,-437.383,0.00015913,2]
[421879072,1778268640000,-1750.0,0.00015802,2]
[421879074,1778268640000,-500.0,0.00015847,2]
[421879077,1778268640000,-624.63,0.0001589,2]
[421879075,1778268640000,-2232.7,0.00015848,2]
[421879084,1778268640000,-634.85081501,0.00016,2]
[421879073,1778268640000,-578.20924308,0.00015814,2]
[421879078,1778268640000,-10132.09099554,0.000159,2]
[421879076,1778268640000,-285.27580162,0.00015869,2]
[421879094,1778268640000,-3000.0,0.0001606,2]
[421879083,1778268640000,-151.0,0.00015999,2]
[421879087,1778268640000,-218.66986848,0.00016,2]
[421879086,1778268640000,-3000.0,0.00016,2]
[421879089,1778268640000,-3000.0,0.0001601,2]
[421879088,1778268640000,-1519.34483836,0.00016,2]
[421879091,1778268640000,-3000.0,0.0001603,2]
[421879090,1778268640000,-3000.0,0.0001602,2]
[421879092,1778268640000,-3000.0,0.0001604,2]
[421879093,1778268640000,-3000.0,0.0001605,2]
[421879096,1778268640000,-3000.0,0.0001608,2]
[421879095,1778268640000,-3000.0,0.0001607,2]
[421879097,1778268640000,-3000.0,0.0001609,2]
[421879071,1778268640000,-1519.34483836,0.000158,2]
[421879098,1778268640000,-634.85081501,0.000161,2]
[421879085,1778268640000,-531.01233415,0.00016,2]
[421879069,1778268640000,-10132.09099554,0.000158,2]
[421879055,1778268640000,-1230.10094004,0.00015702,2]
[421879070,1778268640000,-857.13338203,0.000158,2]
[421879100,1778268640000,-200.85,0.000161,2]
[421879040,1778268640000,-634.85081501,0.000157,2]
[421879042,1778268640000,-392.49754861,0.00015702,2]
[421879041,1778268640000,-1519.34483836,0.000157,2]
[421879043,1778268640000,-1230.10094004,0.00015702,2]
[421879044,1778268640000,-1230.10094004,0.00015702,2]
[421879045,1778268640000,-1230.10094004,0.00015702,2]
[421879046,1778268640000,-1230.10094004,0.00015702,2]
[421879048,1778268640000,-1230.10094004,0.00015702,2]
[421879047,1778268640000,-1230.10094004,0.00015702,2]
[421879051,1778268640000,-1230.10094004,0.00015702,2]
[421879050,1778268640000,-1230.10094004,0.00015702,2]
[421879053,1778268640000,-1230.10094004,0.00015702,2]
[421879049,1778268640000,-1230.10094004,0.00015702,2]
[421879056,1778268640000,-1230.10094004,0.00015702,2]
[421879052,1778268640000,-1230.10094004,0.00015702,2]
[421879057,1778268640000,-1230.10094004,0.00015702,2]
[421879054,1778268640000,-1230.10094004,0.00015702,2]
[421879058,1778268640000,-1230.10094004,0.00015702,2]
[421879059,1778268640000,-1230.10094004,0.00015702,2]
[421879060,1778268640000,-445.202766,0.00015704,2]
[421879063,1778268640000,-537.6845,0.00015704,2]
[421879061,1778268640000,-537.6845,0.00015704,2]
[421879064,1778268640000,-557.5788265,0.00015759,2]
[421879067,1778268640000,-193.48011672,0.000158,2]
[421879065,1778268640000,-156.0,0.0001576,2]
[421879068,1778268640000,-634.85081501,0.000158,2]
[421879066,1778268640000,-206.1,0.00015778,2]
[421879099,1778268640000,-10132.09099554,0.000161,2]
[421879142,1778268640000,-500.0,0.00016438,2]
[421879104,1778268640000,-3276.795236,0.00016155,7]
[421879132,1778268640000,-1000.0,0.00016438,2]
[421879135,1778268640000,-787.59758796,0.00016438,2]
[421879136,1778268640000,-151.0,0.00016438,2]
[421879137,1778268640000,-163.349913,0.00016438,2]
[421879141,1778268640000,-254.10073953,0.00016438,2]
[421879138,1778268640000,-500.0,0.00016438,2]
[421879147,1778268640000,-610.57441802,0.00016438,2]
[421879146,1778268640000,-500.0,0.00016438,2]
[421879144,1778268640000,-500.0,0.00016438,2]
[421879140,1778268640000,-500.0,0.00016438,2]
[421879139,1778268640000,-500.0,0.00016438,2]
[421879145,1778268640000,-500.0,0.00016438,2]
[421879149,1778268640000,-171.6,0.00016438,2]
[421879148,1778268640000,-2002.76,0.00016438,2]
[421879151,1778268640000,-300.0,0.00016438,2]
[421879150,1778268640000,-300.0,0.00016438,2]
[421879154,1778268640000,-300.0,0.00016438,2]
[421879153,1778268640000,-300.0,0.00016438,2]
[421879156,1778268640000,-300.0,0.00016438,2]
[421879152,1778268640000,-300.0,0.00016438,2]
[421879159,1778268640000,-300.0,0.00016438,2]
[421879155,1778268640000,-300.0,0.00016438,2]
[421879157,1778268640000,-300.0,0.00016438,2]
[421879158,1778268640000,-300.0,0.00016438,2]
[421879160,1778268640000,-300.0,0.00016438,2]
[421879161,1778268640000,-300.0,0.00016438,2]
[421879106,1778268640000,-10132.09099554,0.000162,2]
[421879133,1778268640000,-1000.0,0.00016438,2]
[421879134,1778268640000,-1000.0,0.00016438,2]
[421879143,1778268640000,-500.0,0.00016438,2]
[421879129,1778268640000,-2003.92267293,0.00016438,2]
[421879107,1778268640000,-531.01233415,0.000162,2]
[421879130,1778268640000,-1000.0,0.00016438,2]
[421879103,1778268640000,-2232.7,0.00016122,2]
[421879105,1778268640000,-1942.558035,0.00016159,2]
[421879108,1778268640000,-325.7485516,0.00016208,2]
[421879101,1778268640000,-1519.34483836,0.000161,2]
[421879102,1778268640000,-500.0,0.00016121,2]
[421879109,1778268640000,-325.7485516,0.00016208,2]
[421879110,1778268640000,-325.7485517,0.00016208,2]
[421879112,1778268640000,-340.79023664,0.00016252,2]
[421879117,1778268640000,-166.6,0.00016327,2]
[421879114,1778268640000,-531.01233415,0.000163,2]
[421879113,1778268640000,-4477.258449,0.00016257,7]
[421879115,1778268640000,-1519.34483836,0.000163,2]
[421879111,1778268640000,-552.21109138,0.00016252,2]
[421879127,1778268640000,-273.8,0.00016432,2]
[421879131,1778268640000,-1000.0,0.00016438,2]
[421879121,1778268640000,-157.81,0.00016366,2]
[421879128,1778268640000,-200.0,0.00016437,2]
[421879126,1778268640000,-151.0,0.00016428,2]
[421879124,1778268640000,-10132.09099554,0.000164,2]
[421879122,1778268640000,-500.0,0.00016395,2]
[421879125,1778268640000,-31640.0,0.00016428,2]
[421879119,1778268640000,-160.84213938,0.00016338,2]
[421879120,1778268640000,-162.7,0.00016366,2]
[421879118,1778268640000,-151.0,0.00016329,2]
[421879116,1778268640000,-168.13,0.00016314,2]
[421879123,1778268640000,-2232.7,0.00016396,2]
[421879203,1778268641000,-363.043809,0.00016438,2]
[421879209,1778268641000,-363.043809,0.00016438,2]
[421879224,1778268641000,-151.0,0.00016438,2]
[421879207,1778268641000,-363.043809,0.00016438,2]
[421879201,1778268641000,-363.043809,0.00016438,2]
[421879193,1778268641000,-263.012109,0.00016438,2]
[421879199,1778268641000,-263.012118,0.00016438,2]
[421879198,1778268641000,-263.012109,0.00016438,2]
[421879197,1778268641000,-263.012109,0.00016438,2]
[421879196,1778268641000,-263.012109,0.00016438,2]
[421879202,1778268641000,-363.043809,0.00016438,2]
[421879200,1778268641000,-363.043809,0.00016438,2]
[421879206,1778268641000,-363.043809,0.00016438,2]
[421879223,1778268641000,-151.0,0.00016438,2]
[421879204,1778268641000,-363.043809,0.00016438,2]
[421879211,1778268641000,-363.043809,0.00016438,2]
[421879213,1778268641000,-363.043809,0.00016438,2]
[421879212,1778268641000,-363.043809,0.00016438,2]
[421879215,1778268641000,-363.043809,0.00016438,2]
[421879214,1778268641000,-363.043809,0.00016438,2]
[421879217,1778268641000,-363.043809,0.00016438,2]
[421879216,1778268641000,-363.043809,0.00016438,2]
[421879218,1778268641000,-363.043809,0.00016438,2]
[421879221,1778268641000,-151.0,0.00016438,2]
[421879219,1778268641000,-363.043815,0.00016438,2]
[421879222,1778268641000,-151.0,0.00016438,2]
[421879195,1778268641000,-263.012109,0.00016438,2]
[421879205,1778268641000,-363.043809,0.00016438,2]
[421879192,1778268641000,-263.012109,0.00016438,2]
[421879163,1778268641000,-300.0,0.00016438,2]
[421879194,1778268641000,-263.012109,0.00016438,2]
[421879162,1778268641000,-300.0,0.00016438,2]
[421879165,1778268641000,-300.0,0.00016438,2]
[421879166,1778268641000,-300.0,0.00016438,2]
[421879164,1778268641000,-300.0,0.00016438,2]
[421879168,1778268641000,-300.0,0.00016438,2]
[421879170,1778268641000,-300.0,0.00016438,2]
[421879167,1778268641000,-300.0,0.00016438,2]
[421879169,1778268641000,-300.0,0.00016438,2]
[421879172,1778268641000,-300.0,0.00016438,2]
[421879173,1778268641000,-300.0,0.00016438,2]
[421879171,1778268641000,-300.0,0.00016438,2]
[421879175,1778268641000,-300.0,0.00016438,2]
[421879174,1778268641000,-300.0,0.00016438,2]
[421879189,1778268641000,-263.012109,0.00016438,2]
[421879177,1778268641000,-300.0,0.00016438,2]
[421879178,1778268641000,-300.0,0.00016438,2]
[421879179,1778268641000,-270.0,0.00016438,2]
[421879180,1778268641000,-263.012109,0.00016438,2]
[421879182,1778268641000,-263.012109,0.00016438,2]
[421879183,1778268641000,-263.012109,0.00016438,2]
[421879186,1778268641000,-263.012109,0.00016438,2]
[421879181,1778268641000,-263.012109,0.00016438,2]
[421879184,1778268641000,-263.012109,0.00016438,2]
[421879185,1778268641000,-263.012109,0.00016438,2]
[421879187,1778268641000,-263.012109,0.00016438,2]
[421879188,1778268641000,-263.012109,0.00016438,2]
[421879191,1778268641000,-263.012109,0.00016438,2]
[421879190,1778268641000,-263.012109,0.00016438,2]